bitfinex/quotes_ETHUSD_20220113
["timestamp","ask_amount","ask_price","bid_price","bid_amount"]
[1642039570139,12.16861978,3338.3,3338.2,0.48930784]
[1642039570435,12.16861978,3338.3,3338.2,0.49044469]
[1642039571637,14.73713611,3338.3,3338.2,0.49044469]
[1642039573386,14.35693611,3338.3,3338.2,0.49044469]
[1642039574587,12.12863632,3338.3,3338.2,0.49044469]
[1642039574993,12.12863632,3338.3,3338.2,0.00113685]
[1642039575186,12.00883632,3338.3,3338.2,0.00113685]
[1642039575387,12.00883632,3338.3,3337.6,0.00454739]
[1642039575633,0.748857,3338.0,3337.6,0.00454739]
[1642039575828,5.99031999,3337.9,3337.7,0.48930784]
[1642039576228,5.99031999,3337.9,3337.8,0.00341054]
[1642039581990,5.99031999,3337.9,3337.8,6.34271838]
[1642039582190,5.99031999,3337.9,3337.8,7.34271838]
[1642039582392,5.99031999,3337.9,3337.8,7.64271838]
[1642039584841,5.98943998,3337.9,3337.8,7.64271838]
[1642039586248,5.98943998,3337.9,3337.8,1.74271838]
[1642039586646,5.98943998,3337.9,3337.8,0.74271838]
[1642039591329,5.98943998,3337.9,3337.8,0.49271838]
[1642039592230,8.26240235,3337.9,3337.8,0.49271838]
[1642039592432,8.64144251,3337.9,3337.8,0.49271838]
[1642039592634,8.76124251,3337.9,3337.8,0.49271838]
[1642039593434,11.33012154,3337.9,3337.8,0.49271838]
[1642039596689,8.97811901,3337.9,3337.8,0.49271838]
[1642039598156,8.85831901,3337.9,3337.8,0.49271838]
[1642039601878,8.97827501,3337.9,3337.8,0.49271838]
[1642039606150,8.97827501,3337.9,3336.8,5.34559]
[1642039606352,8.97827501,3337.9,3336.8,3.8478]
[1642039606353,3.15038017,3337.8,3336.8,3.8478]
[1642039606548,0.7490148,3337.4,3336.9,0.00852635]
[1642039606749,6.42017534,3337.3,3336.9,0.00852635]
[1642039606953,6.41543998,3337.3,3336.2,0.01250532]
[1642039607253,6.41543998,3337.3,3336.3,0.01193689]
[1642039607451,1.2906456,3336.4,3336.3,0.01193689]
[1642039607653,1.2906456,3336.4,3336.2,0.01250532]
[1642039608051,1.2906456,3336.4,3335.9,0.01421059]
[1642039608454,1.2906456,3336.4,3335.9,0.08081551]
[1642039608858,1.2906456,3336.4,3336.0,0.01364216]
[1642039609587,2.2476537,3336.7,3336.1,0.74915]
[1642039609588,0.7491433,3336.7,3336.1,0.74915]
[1642039609888,5.98943998,3336.6,3336.2,0.01250532]
[1642039610488,5.98943998,3336.6,3336.1,1.49813]
[1642039610887,5.98943998,3336.6,3336.3,0.7491]
[1642039611289,5.98943998,3336.6,3336.4,0.01136847]
[1642039612495,5.98943998,3336.6,3336.2,0.01250532]
[1642039613137,5.98943998,3336.6,3336.3,0.7491]
[1642039613531,5.98943998,3336.6,3336.4,0.01136847]
[1642039615033,5.98943998,3336.6,3335.9,0.01421059]
[1642039615436,5.98943998,3336.6,3335.8,0.01477901]
[1642039615835,0.7492419,3336.4,3335.8,0.01477901]
[1642039616037,5.98943998,3336.3,3335.8,0.01477901]
[1642039616535,5.98943998,3336.3,3335.7,0.01534743]
[1642039616738,5.98943998,3336.3,3335.8,0.74922]
[1642039617188,5.98943998,3336.3,3335.9,0.01421059]
[1642039617791,5.98943998,3336.3,3336.0,0.74916]
[1642039618195,5.98943998,3336.3,3336.1,0.01307374]
[1642039618395,5.98943998,3336.3,3336.0,0.71223374]
[1642039620295,5.98943998,3336.3,3336.0,1.01223374]
[1642039620498,5.98943998,3336.3,3336.1,2.3236381]
[1642039620744,0.119978,3337.3,3336.7,0.74892]
[1642039621147,5.99965266,3337.2,3336.7,0.74892]
[1642039621446,0.00568423,3337.1,3336.7,0.74892]
[1642039621744,0.119978,3337.3,3336.7,0.74892]
[1642039621745,5.99851581,3337.0,3336.7,0.74892]
[1642039622147,0.00454739,3336.9,3336.4,1.74908]
[1642039622548,0.00397896,3336.8,3336.4,1.0]
[1642039622948,0.00341054,3336.7,3336.4,1.0]
[1642039623349,0.00284212,3336.6,3336.3,4.8055]
[1642039623553,0.00284212,3336.6,3336.0,3.9876]
[1642039623748,0.7491576,3336.7,3335.8,1.2394]
[1642039623749,0.00227369,3336.5,3335.8,1.2394]
[1642039623952,5.99567369,3336.5,3335.6,3.7995]
[1642039624149,0.00170527,3336.4,3335.9,0.00113685]
[1642039624383,5.9934,3336.3,3335.9,0.00113685]
[1642039624588,1.4987196,3336.2,3335.9,0.00113685]
[1642039624788,5.9934,3336.1,3335.9,0.00113685]
[1642039624988,5.9934,3336.1,3335.5,0.00341054]
[1642039625188,5.9934,3336.1,3335.3,0.00454739]
[1642039625189,1.15438962,3335.8,3335.3,0.00454739]
[1642039625591,0.7493914,3335.7,3335.3,0.00454739]
[1642039625795,5.9934,3335.6,3335.1,0.00568424]
[1642039626890,6.7428002,3335.6,3335.1,0.00568424]
[1642039628637,5.9934,3335.6,3335.1,0.00568424]
[1642039629940,5.9934,3335.6,3335.2,0.74935]
[1642039630139,5.9934,3335.6,3335.2,0.64935]
[1642039630344,5.9934,3335.6,3335.3,0.00454739]
[1642039631241,5.9934,3335.6,3335.0,0.01953283]
[1642039631242,5.9934,3335.6,3335.1,0.00568424]
[1642039632698,5.9934,3335.6,3335.1,1.97543645]
[1642039632891,5.9934,3335.6,3335.1,0.00568424]
[1642039633091,5.9934,3335.6,3335.2,0.00511581]
[1642039633292,5.9934,3335.6,3335.1,2.00613066]
[1642039633493,5.9934,3335.6,3335.2,1.00511581]
[1642039633895,5.9934,3335.6,3335.3,0.00454739]
[1642039634094,5.9934,3335.6,3335.3,3.9545586]
[1642039634292,5.9934,3335.6,3335.3,1.92900739]
[1642039634494,5.9934,3335.6,3335.4,1.00397896]
[1642039634696,5.9934,3335.6,3335.4,0.00397896]
[1642039634895,5.9934,3335.6,3335.5,0.00341054]
[1642039635094,5.9934,3335.6,3335.4,0.75320896]
[1642039635295,5.9934,3335.6,3335.5,0.00341054]
[1642039635746,5.9934,3335.6,3335.3,0.00454739]
[1642039635946,5.9934,3335.6,3335.1,0.00568424]
[1642039636544,0.7494907,3335.5,3335.1,0.00568424]
[1642039636744,5.9934,3335.4,3335.1,0.00568424]
[1642039636946,5.9934,3335.4,3335.1,1.00568424]
[1642039637450,5.9934,3335.4,3335.2,0.00511581]
[1642039638047,4.74224388,3335.3,3335.2,0.00511581]
[1642039638247,8.24992992,3335.3,3335.2,0.00511581]
[1642039638847,5.9934,3335.3,3335.2,0.00511581]
[1642039650293,5.97711,3335.3,3335.2,0.00511581]
[1642039653141,5.97711,3335.3,3335.2,3.90511581]
[1642039653341,5.97711,3335.3,3335.2,4.90511581]
[1642039654140,5.97711,3335.3,3335.2,1.00511581]
[1642039654388,5.97711,3335.3,3335.2,0.95511581]
[1642039654588,5.97711,3335.3,3335.1,1.74938]
[1642039654990,1.12407658,3335.2,3335.1,1.74938]
[1642039655288,1.12407658,3335.2,3335.1,1.74834]
[1642039655289,7.10118658,3335.2,3335.1,1.74834]
[1642039656294,6.84845658,3335.2,3335.1,1.74834]
[1642039656693,6.84845658,3335.2,3335.1,2.74834]
[1642039657497,6.84845658,3335.2,3335.1,1.74834]
[1642039657697,6.84845658,3335.2,3335.1,2.74834]
[1642039658150,6.84845658,3335.2,3335.1,1.74834]
[1642039661054,6.84845658,3335.2,3335.1,0.99896]
[1642039664999,9.18342742,3335.2,3335.1,0.99896]
[1642039665199,9.30332742,3335.2,3335.1,0.99896]
[1642039665496,9.30332742,3335.2,3333.2,3.7663]
[1642039665497,5.85,3335.0,3333.2,3.7663]
[1642039665739,1.13152644,3334.1,3333.5,0.34504416]
[1642039665936,3.6287,3334.8,3333.9,0.00738951]
[1642039666142,6.09701,3334.7,3333.9,0.00738951]
[1642039666337,5.97711,3334.7,3333.5,0.30243367]
[1642039666536,0.00397897,3334.6,3333.6,0.00170527]
[1642039666738,5.97711,3334.5,3333.6,0.00170527]
[1642039666943,5.98052054,3334.5,3333.6,0.00170527]
[1642039667142,0.00284212,3334.4,3333.6,0.00170527]
[1642039667542,5.97711,3334.5,3333.5,0.60227369]
[1642039667543,0.0022737,3334.3,3333.5,0.60227369]
[1642039667746,1.39084237,3334.1,3333.5,0.60227369]
[1642039668242,1.39084237,3334.1,3333.5,0.30227369]
[1642039668443,1.39084237,3334.1,3333.5,0.00227369]
[1642039668844,1.39084237,3334.1,3333.5,0.30227369]
[1642039669043,0.00170527,3334.2,3333.7,0.7497]
[1642039669489,0.00113685,3334.1,3333.7,1.0497]
[1642039669894,0.00284212,3334.4,3333.7,1.0497]
[1642039670190,1.40035287,3334.3,3333.7,1.0497]
[1642039670590,0.00170527,3334.2,3333.7,1.0497]
[1642039670890,1.39807917,3334.3,3333.7,1.0497]
[1642039670891,0.00113685,3334.1,3333.7,1.0497]
[1642039671294,0.00170527,3334.2,3333.7,1.0497]
[1642039671494,0.00170527,3334.2,3333.9,0.74966]
[1642039671692,1.39807917,3334.3,3333.9,0.74966]
[1642039671693,0.00113685,3334.1,3333.9,0.74966]
[1642039672093,0.00170527,3334.2,3333.9,0.74966]
[1642039672293,0.00170527,3334.2,3333.9,1.04966]
[1642039672497,0.00113685,3334.1,3333.9,1.04966]
[1642039672894,0.00170527,3334.2,3333.9,1.04966]
[1642039673140,0.00170527,3334.2,3333.9,2.04966]
[1642039673331,0.00113685,3334.1,3333.9,1.04966]
[1642039673531,0.00113685,3334.1,3333.9,2.04966]
[1642039673733,0.00170527,3334.2,3333.9,1.04966]
[1642039673935,0.00170527,3334.2,3333.9,2.04966]
[1642039674137,0.00113685,3334.1,3333.9,2.04966]
[1642039674536,0.00170527,3334.2,3333.9,2.04966]
[1642039674938,0.00113685,3334.1,3333.9,1.74966]
[1642039675137,0.00113685,3334.1,3333.9,0.74966]
[1642039675339,0.00170527,3334.2,3333.9,1.74966]
[1642039675639,0.00113685,3334.1,3333.9,0.74966]
[1642039675838,0.00113685,3334.1,3333.9,1.74966]
[1642039676037,0.00284212,3334.4,3333.9,0.74966]
[1642039676441,0.0022737,3334.3,3333.9,1.74966]
[1642039676885,0.00170527,3334.2,3333.9,1.74966]
[1642039677391,0.00113685,3334.1,3333.9,1.74966]
[1642039677888,0.00170527,3334.2,3333.9,1.74966]
[1642039678389,0.00113685,3334.1,3333.9,1.74966]
[1642039678788,0.00170527,3334.2,3333.9,1.74966]
[1642039678993,0.00170527,3334.2,3333.9,0.74966]
[1642039679192,0.00113685,3334.1,3333.9,1.74966]
[1642039679589,0.00170527,3334.2,3333.9,1.74966]
[1642039679992,0.00113685,3334.1,3333.9,0.74966]
[1642039680191,0.00113685,3334.1,3333.9,1.74966]
[1642039680393,0.00170527,3334.2,3333.9,1.74966]
[1642039680668,0.00113685,3334.1,3333.9,1.74966]
[1642039681056,0.00170527,3334.2,3333.9,1.74966]
[1642039681456,0.00113685,3334.1,3333.9,0.69966]
[1642039681660,0.00113685,3334.1,3333.9,1.69966]
[1642039681856,0.00170527,3334.2,3333.9,0.69966]
[1642039682062,0.00170527,3334.2,3333.9,1.69966]
[1642039682262,0.00113685,3334.1,3333.9,0.69966]
[1642039682462,0.00113685,3334.1,3333.9,1.69966]
[1642039682664,0.00170527,3334.2,3333.9,0.69966]
[1642039682863,0.00170527,3334.2,3333.9,1.69966]
[1642039683065,0.00113685,3334.1,3333.9,0.69966]
[1642039683268,0.00113685,3334.1,3333.9,1.69966]
[1642039683467,0.00170527,3334.2,3333.9,1.69966]
[1642039683668,0.00170527,3334.2,3333.9,0.69966]
[1642039683867,0.00113685,3334.1,3333.9,1.69966]
[1642039684068,0.00113685,3334.1,3333.9,0.69966]
[1642039684272,0.00170527,3334.2,3333.9,1.69966]
[1642039684692,0.00113685,3334.1,3333.9,0.69966]
[1642039685091,5.97711,3334.3,3333.9,1.69966]
[1642039685092,0.00170527,3334.2,3333.9,1.69966]
[1642039685293,0.00170527,3334.2,3333.9,0.69966]
[1642039685493,0.00113685,3334.1,3333.9,1.69966]
[1642039685896,0.00170527,3334.2,3333.9,0.69966]
[1642039686096,0.00170527,3334.2,3333.9,1.69966]
[1642039686299,0.00113685,3334.1,3333.9,1.99966]
[1642039686496,0.00113685,3334.1,3334.0,5.46660491]
[1642039686699,0.00170527,3334.2,3334.0,6.46660491]
[1642039686903,0.00113685,3334.1,3334.0,6.46660491]
[1642039687097,0.00113685,3334.1,3334.0,1.06660491]
[1642039687297,0.00170527,3334.1,3334.0,1.06660491]
[1642039687497,0.00170527,3334.1,3334.0,1.0]
[1642039687700,0.00170527,3334.1,3334.0,4.2]
[1642039688547,0.00170527,3334.1,3334.0,1.0]
[1642039691054,1.37382431,3334.1,3334.0,1.0]
[1642039692696,1.37382431,3334.1,3334.0,1.3]
[1642039693197,0.00170527,3334.1,3334.0,1.3]
[1642039693596,0.00170527,3334.1,3333.7,0.74971]
[1642039693797,0.00170527,3334.1,3333.4,0.00284211]
[1642039694199,0.1199,3334.0,3333.3,0.00341054]
[1642039694397,0.12160527,3334.1,3333.2,0.00397896]
[1642039694599,1.42073357,3333.6,3333.2,0.00397896]
[1642039694796,2.92501535,3333.6,3333.2,0.00397896]
[1642039694998,0.00355766,3333.5,3333.2,0.00397896]
[1642039695399,2.92501535,3333.6,3333.2,0.00397896]
[1642039696242,0.00329204,3333.5,3333.2,0.00397896]
[1642039697851,2.92501535,3333.6,3333.2,0.00397896]
[1642039698251,2.92501535,3333.6,3333.1,0.00454738]
[1642039698751,0.74991,3333.5,3333.1,0.00454738]
[1642039699252,2.92501535,3333.6,3333.1,0.00454738]
[1642039700596,2.92501535,3333.6,3333.1,0.75438738]
[1642039700997,2.92501535,3333.6,3333.2,0.00397896]
[1642039702800,1.42073357,3333.6,3333.2,0.00397896]
[1642039703000,1.42073357,3333.6,3333.3,0.7498]
[1642039703239,0.00170527,3334.1,3333.3,0.7498]
[1642039703439,0.00170527,3334.1,3333.4,0.00284211]
[1642039703846,0.00170527,3334.1,3333.4,0.30284211]
[1642039704048,0.00170527,3334.1,3333.7,0.74964]
[1642039704250,5.97711,3334.0,3333.7,0.74964]
[1642039704447,7.46121954,3334.0,3333.5,0.00227369]
[1642039704851,8.21102954,3334.0,3333.2,0.00397896]
[1642039705049,1.5302356,3333.5,3333.2,0.00397896]
[1642039705250,1.5302356,3333.5,3333.3,0.7498]
[1642039705449,1.5302356,3333.5,3333.2,0.00397896]
[1642039705648,1.5302356,3333.5,3333.4,0.00284211]
[1642039705852,1.5302356,3333.5,3332.7,0.02038338]
[1642039705853,5.97711,3333.4,3333.0,0.00511581]
[1642039706048,1.36586884,3333.3,3332.8,0.00625265]
[1642039706248,5.97711,3333.2,3332.8,0.00625265]
[1642039707195,7.80236,3333.2,3332.8,0.00625265]
[1642039708194,7.80236,3333.2,3332.8,0.00705265]
[1642039708592,7.80236,3333.2,3332.9,0.00568423]
[1642039708796,1.51786025,3333.0,3332.9,0.00568423]
[1642039708996,7.49497025,3333.0,3332.9,0.00568423]
[1642039711452,7.49497025,3333.0,3332.9,0.07478423]
[1642039713355,7.49497025,3333.0,3332.9,0.07558423]
[1642039715607,7.44497025,3333.0,3332.9,0.07558423]
[1642039735350,9.78139056,3333.0,3332.9,0.07558423]
[1642039736749,9.5282548,3333.0,3332.9,0.07558423]
[1642039737700,9.5282548,3333.0,3332.7,0.02038338]
[1642039737701,4.15,3332.9,3332.7,0.02038338]
[1642039737899,8.43454403,3332.8,3332.7,0.02038338]
[1642039738297,8.43454403,3332.8,3332.7,0.02152023]
[1642039739499,8.43454403,3332.8,3332.7,0.04602736]
[1642039740101,8.73454403,3332.8,3332.7,0.04602736]
[1642039740946,8.43454403,3332.8,3332.7,0.04602736]
[1642039746596,5.97711,3332.8,3332.7,0.04602736]
[1642039750458,8.12507569,3332.8,3332.7,0.04602736]
[1642039750658,10.69763172,3332.8,3332.7,0.04602736]
[1642039752696,8.54966603,3332.8,3332.7,0.04602736]
[1642039755652,5.97711,3332.8,3332.7,0.04602736]
[1642039756043,5.97711,3332.8,3332.6,0.74597736]
[1642039757250,1.09823648,3332.7,3332.6,0.74597736]
[1642039757450,7.07534648,3332.7,3332.6,0.74597736]
[1642039767009,7.07534648,3332.7,3332.5,1.49982]
[1642039773055,5.97711,3332.7,3332.5,2.52582]
[1642039773254,5.97711,3332.7,3332.6,8.69011623]
[1642039773452,5.97711,3332.7,3332.6,9.69011623]
[1642039773651,5.97711,3332.7,3332.6,10.01714428]
[1642039773852,5.97711,3332.7,3332.6,9.95088269]
[1642039774254,0.12,3333.4,3332.6,27.9197228]
[1642039774499,0.12,3333.4,3333.1,1.04968]
[1642039774699,0.12,3333.4,3333.1,2.04968]
[1642039775102,0.12,3333.4,3333.1,2.34968]
[1642039775302,0.12,3333.4,3333.2,2.22948777]
[1642039775502,0.12,3333.4,3333.2,2.52948777]
[1642039775702,0.12,3333.4,3333.2,1.3]
[1642039779146,0.12,3333.4,3333.1,0.74968]
[1642039779346,0.00485987,3333.3,3333.1,0.74968]
[1642039779545,1.26061,3333.6,3333.1,0.74968]
[1642039779746,0.00454739,3333.5,3333.0,1.49936]
[1642039780145,0.00397897,3333.4,3333.0,1.49936]
[1642039780545,0.00341054,3333.3,3333.0,1.79936]
[1642039780847,1.50237148,3333.1,3333.0,2.79936]
[1642039781250,1.50464518,3333.1,3333.0,1.49936]
[1642039781450,1.50464518,3333.1,3332.3,2.67477]
[1642039781650,0.01949263,3333.0,3332.3,1.49987]
[1642039781898,0.0211979,3333.0,3332.5,0.00113685]
[1642039782103,0.00113685,3332.9,3332.5,0.00113685]
[1642039782302,1.28856352,3332.9,3332.5,0.00113685]
[1642039782701,1.30201148,3332.6,3332.5,0.00113685]
[1642039785663,3.70201148,3332.6,3332.5,0.00113685]
[1642039786058,4.42801148,3332.6,3332.5,0.00113685]
[1642039786458,2.32801148,3332.6,3332.5,0.00113685]
[1642039786661,2.02801148,3332.6,3332.5,0.00113685]
[1642039787259,1.30201148,3332.6,3332.5,0.00113685]
[1642039788460,0.75006,3332.8,3332.5,0.00113685]
[1642039788660,6.0012,3332.7,3332.5,0.00113685]
[1642039789711,7.37734422,3332.7,3332.5,0.00113685]
[1642039792215,7.37734422,3332.7,3332.5,0.75109685]
[1642039792417,7.37734422,3332.7,3332.5,0.00113685]
[1642039797403,7.07734422,3332.7,3332.5,0.00113685]
[1642039801256,7.07734422,3332.7,3332.5,0.75109685]
[1642039801458,7.07734422,3332.7,3332.6,1.98208979]
[1642039801459,5.7012,3332.7,3332.6,1.98208979]
[1642039801657,5.7012,3332.7,3332.6,2.98208979]
[1642039803259,5.7012,3332.7,3332.6,1.0]
[1642039803662,5.7012,3332.7,3332.5,2.05109685]
[1642039804911,5.7012,3332.7,3332.5,4.01162238]
[1642039805209,5.7012,3332.7,3332.5,2.05109685]
[1642039807818,5.7012,3332.7,3332.5,0.75109685]
[1642039808015,5.7012,3332.7,3332.5,0.00113685]
[1642039811158,5.7012,3332.7,3332.5,2.91193966]
[1642039811360,5.7012,3332.7,3332.6,4.70362691]
[1642039811557,5.7012,3332.7,3332.6,5.70362691]
[1642039812002,5.7012,3332.7,3332.6,2.00362691]
[1642039812203,5.7012,3332.7,3332.6,3.00362691]
[1642039814405,5.7012,3332.7,3332.6,27.8258885]
[1642039814603,5.7012,3332.7,3332.6,30.27413887]
[1642039815004,3.8865,3333.8,3333.2,0.74969]
[1642039815005,3.6865,3333.8,3333.2,0.74969]
[1642039815205,3.6865,3333.8,3333.1,1.7992563]
[1642039815206,1.38997544,3333.7,3333.3,2.28102214]
[1642039815406,6.00538424,3333.7,3333.3,2.58102214]
[1642039815656,6.00538424,3333.7,3333.4,1.0]
[1642039815851,6.00538424,3333.7,3333.5,2.1772533]
[1642039816052,6.00538424,3333.7,3333.5,3.4772533]
[1642039816254,6.00538424,3333.7,3333.6,6.89700351]
[1642039816453,6.00538424,3333.7,3333.6,7.64668351]
[1642039816658,6.00538424,3333.7,3333.6,8.64668351]
[1642039817054,6.00538424,3333.7,3333.6,4.04668351]
[1642039819058,6.00538424,3333.7,3333.6,4.1129451]
[1642039819262,6.00538424,3333.7,3333.6,6.6629451]
[1642039819505,6.00538424,3333.7,3333.6,4.1129451]
[1642039819709,6.00538424,3333.7,3333.6,4.4129451]
[1642039819911,6.00538424,3333.7,3333.6,2.11594159]
[1642039820111,6.00538424,3333.7,3333.6,0.81594159]
[1642039820312,6.00538424,3333.7,3333.6,1.81594159]
[1642039820917,6.00538424,3333.7,3333.0,1.49955]
[1642039821114,0.1199,3333.6,3332.6,4.6349]
[1642039821312,1.34516056,3332.8,3332.6,4.6349]
[1642039821510,1.34516056,3332.8,3332.6,1.0]
[1642039821511,5.9997,3332.7,3332.6,1.0]
[1642039821711,7.16242573,3332.7,3332.6,1.0]
[1642039822014,7.16242573,3332.7,3332.6,1.49971]
[1642039822210,7.16242573,3332.7,3332.6,4.34971]
[1642039822411,7.16242573,3332.7,3332.4,0.007]
[1642039823845,7.16242573,3332.7,3332.4,1.5068]
[1642039824243,7.16242573,3332.7,3332.4,1.8068]
[1642039827109,7.16242573,3332.7,3332.4,2.8068]
[1642039827311,7.16242573,3332.7,3332.4,1.8068]
[1642039827508,7.16242573,3332.7,3332.5,1.74989]
[1642039828109,7.16242573,3332.7,3332.5,2.04989]
[1642039840159,7.16242573,3332.7,3332.5,19.57989]
[1642039842201,7.16242573,3332.7,3332.5,19.64615159]
[1642039842605,7.16242573,3332.7,3332.5,2.11615159]
[1642039844804,7.16242573,3332.7,3332.5,19.64615159]
[1642039845006,1.16483573,3332.7,3332.5,19.75815159]
[1642039845205,1.16483573,3332.7,3332.5,19.64615159]
[1642039845407,1.16483573,3332.7,3332.5,19.75815159]
[1642039846057,1.16483573,3332.7,3332.5,19.64615159]
[1642039846454,1.16483573,3332.7,3332.5,19.75975159]
[1642039846654,1.38153965,3333.3,3332.5,19.75975159]
[1642039846855,1.4835662,3332.9,3332.7,0.7497]
[1642039847057,6.001,3332.8,3332.7,0.7497]
[1642039847458,0.00362,3332.8,3332.7,8.0997]
[1642039848059,1.4835662,3332.9,3332.8,5.75]
[1642039848461,7.48560305,3332.9,3332.8,6.75]
[1642039852031,7.48560305,3332.9,3332.8,7.05]
[1642039852430,7.48560305,3332.9,3332.8,1.25]
[1642039852631,7.48560305,3332.9,3332.8,1.2]
[1642039854056,7.48560305,3332.9,3332.7,1.7497]
[1642039854354,7.48560305,3332.9,3332.7,0.7497]
[1642039854558,0.12,3333.6,3332.7,0.7497]
[1642039854559,0.12,3333.6,3332.9,0.2999001]
[1642039854755,0.12,3333.6,3333.0,17.956]
[1642039854958,0.12,3333.6,3333.3,18.27961]
[1642039855159,0.12,3333.6,3333.4,0.426]
[1642039855361,5.9997,3333.5,3333.4,1.426]
[1642039855560,7.2122018,3333.5,3333.4,1.49226159]
[1642039855859,1.2161418,3333.5,3333.4,8.04226159]
[1642039856912,1.2161418,3333.5,3333.4,12.66002627]
[1642039857512,0.12,3333.6,3333.5,6.55]
[1642039857712,0.12,3333.6,3333.5,9.01439194]
[1642039857914,0.12397896,3333.6,3333.5,7.85]
[1642039860114,0.12397896,3333.6,3333.5,7.55]
[1642039860316,0.12397896,3333.6,3333.5,7.85]
[1642039860514,0.12397896,3333.6,3333.5,1.0]
[1642039860751,0.00397896,3333.6,3333.5,6.1]
[1642039860951,1.10771312,3333.7,3333.6,5.2]
[1642039861152,1.10771312,3333.7,3333.6,6.94956]
[1642039861555,7.10711312,3333.7,3333.6,6.94956]
[1642039864811,5.9994,3333.7,3333.6,8.40504839]
[1642039865207,5.9994,3333.7,3333.6,8.83104839]
[1642039865608,0.00373,3333.7,3333.6,8.83104839]
[1642039866209,3.6021,3334.6,3333.7,6.55]
[1642039866415,4.3229,3335.1,3334.5,0.74937]
[1642039866617,2.25316377,3335.7,3334.5,0.74937]
[1642039866812,5.9973,3335.1,3334.5,0.74937]
[1642039867011,5.9973,3335.1,3334.5,0.3]
[1642039867012,6.00582635,3335.1,3334.5,0.3]
[1642039867411,1.20537083,3334.9,3334.4,1.79873]
[1642039867611,5.9973,3334.8,3334.4,1.79873]
[1642039867813,6.00412108,3334.8,3334.4,1.79873]
[1642039868013,5.9973,3334.8,3334.7,1.04945]
[1642039868454,6.00412108,3334.8,3334.7,1.04945]
[1642039870758,6.00412108,3334.8,3334.7,3.89945]
[1642039871158,6.00412108,3334.8,3334.7,4.89945]
[1642039872814,6.00412108,3334.8,3334.7,2.04945]
[1642039873013,6.00412108,3334.8,3334.7,1.04945]
[1642039873217,6.00412108,3334.8,3334.7,2.04945]
[1642039874018,6.00412108,3334.8,3334.7,1.04945]
[1642039874217,6.00412108,3334.8,3334.7,2.04945]
[1642039874422,6.00412108,3334.8,3334.7,1.04945]
[1642039874620,6.00412108,3334.8,3334.7,2.04945]
[1642039874918,6.00412108,3334.8,3334.7,1.04945]
[1642039875121,6.00412108,3334.8,3334.7,2.04945]
[1642039875519,6.00412108,3334.8,3334.7,1.04945]
[1642039875758,6.00412108,3334.8,3334.7,5.04945]
[1642039875958,6.00412108,3334.8,3334.7,6.04945]
[1642039876561,6.00412108,3334.8,3334.7,2.04945]
[1642039876761,6.00412108,3334.8,3334.7,1.04945]
[1642039877365,6.00412108,3334.8,3334.7,1.34945]
[1642039877568,6.00412108,3334.8,3334.7,4.49945]
[1642039877965,6.00412108,3334.8,3334.7,5.49945]
[1642039879606,5.90412108,3334.8,3334.7,5.49945]
[1642039880907,1.1922,3335.8,3334.7,7.46181749]
[1642039881104,0.74927,3336.0,3335.1,0.2996874]
[1642039881306,0.00454739,3335.6,3335.4,0.74922]
[1642039881505,0.00454739,3335.6,3335.4,2.86034577]
[1642039881706,0.74927,3336.0,3335.5,5.95]
[1642039881906,1.18150238,3335.7,3335.5,1.0]
[1642039882108,1.18150238,3335.7,3335.4,1.3]
[1642039882109,6.00044739,3335.6,3335.4,1.3]
[1642039882308,6.00044739,3335.6,3335.5,0.74921]
[1642039882505,5.9959,3335.6,3335.5,0.74921]
[1642039885559,5.9959,3335.6,3335.5,5.04921]
[1642039885758,5.9959,3335.6,3335.5,5.47521]
[1642039885959,5.9959,3335.6,3335.5,6.47521]
[1642039887416,5.9959,3335.6,3335.5,8.57782853]
[1642039887614,5.9959,3335.6,3335.5,6.47521]
[1642039888015,5.9959,3335.6,3335.5,2.17521]
[1642039888414,5.9959,3335.6,3335.5,1.17521]
[1642039888615,5.9959,3335.6,3335.5,2.17521]
[1642039889014,5.9959,3335.6,3335.5,1.17521]
[1642039889214,5.9959,3335.6,3335.5,2.17521]
[1642039890115,5.9959,3335.6,3335.5,1.17521]
[1642039890517,5.9959,3335.6,3335.5,5.22521]
[1642039890760,5.9959,3335.6,3335.5,2.17521]
[1642039890962,5.9959,3335.6,3335.5,4.26360974]
[1642039891361,5.9959,3335.6,3335.5,2.17521]
[1642039891561,5.9959,3335.6,3335.5,1.17521]
[1642039891761,5.9959,3335.6,3335.5,2.17521]
[1642039892164,5.9959,3335.6,3335.5,1.17521]
[1642039892468,5.9959,3335.6,3335.5,5.57521]
[1642039892667,5.9959,3335.6,3335.5,6.57521]
[1642039893264,5.9959,3335.6,3335.5,2.17521]
[1642039894509,5.9959,3335.6,3335.5,4.07521]
[1642039894705,5.9959,3335.6,3335.5,5.07521]
[1642039895712,5.839448,3335.6,3335.5,5.07521]
[1642039896113,5.839448,3335.6,3335.5,2.17521]
[1642039897212,5.839448,3335.6,3335.5,1.17521]
[1642039897413,5.839448,3335.6,3335.5,3.92521]
[1642039897615,5.839448,3335.6,3335.5,4.92521]
[1642039899262,5.52487274,3335.6,3335.5,4.92521]
[1642039900063,5.52487274,3335.6,3335.5,2.17521]
[1642039900265,5.52487274,3335.6,3335.5,1.17521]
[1642039900463,5.52487274,3335.6,3335.5,4.77521]
[1642039901164,5.52487274,3335.6,3335.5,2.17521]
[1642039901564,5.52487274,3335.6,3335.5,1.17521]
[1642039902011,5.52487274,3335.6,3335.5,2.17521]
[1642039902419,5.52487274,3335.6,3335.5,1.17521]
[1642039902620,5.52487274,3335.6,3335.5,1.0]
[1642039902819,5.52487274,3335.6,3335.1,0.74937]
[1642039903116,0.00397897,3335.5,3335.1,0.74937]
[1642039903617,0.00341055,3335.4,3335.1,0.74937]
[1642039903818,0.00341055,3335.4,3335.1,1.04937]
[1642039904016,0.00284212,3335.3,3335.1,1.04937]
[1642039904418,0.0022737,3335.2,3335.1,1.04937]
[1642039905421,0.0022737,3335.2,3335.1,5.99937]
[1642039905659,0.0022737,3335.2,3335.1,6.99937]
[1642039906261,0.0022737,3335.2,3335.1,8.64937]
[1642039907272,0.0022737,3335.2,3335.1,6.99937]
[1642039907867,0.0022737,3335.2,3335.1,7.42537]
[1642039909517,0.0022737,3335.2,3335.1,2.47537]
[1642039909716,0.0022737,3335.2,3335.1,2.77537]
[1642039909917,0.0022737,3335.2,3335.1,1.77537]
[1642039910119,0.0022737,3335.2,3335.1,2.77537]
[1642039910416,0.0022737,3335.2,3335.1,6.82537]